[Event "*** Titled Tuesday 3|2 Blitz"]
[Site "Chess.com"]
[Date "2017.05.02"]
[Round "6"]
[White "grzechu96"]
[Black "sorito"]
[Result "1-0"]
[WhiteElo "2392"]
[BlackElo "2379"]
[TimeControl "180+2"]
[EndTime "14:18:03 PDT"]
[Termination "grzechu96 won by resignation"]

1. e4 {[%clk 0:03:02]} 1... c5 {[%clk 0:03:00.2]} 2. Nf3 {[%clk 0:03:03.3]} 2...
a6 {[%clk 0:03:01.3]} 3. c4 {[%clk 0:03:03.1]} 3... Nc6 {[%clk 0:03:01.6]} 4. d4
{[%clk 0:03:02.7]} 4... cxd4 {[%clk 0:03:02.9]} 5. Nxd4 {[%clk 0:03:04.6]} 5...
e5 {[%clk 0:03:04.4]} 6. Nf5 {[%clk 0:03:06.1]} 6... Nf6 {[%clk 0:03:02.2]} 7.
Nc3 {[%clk 0:03:03.6]} 7... d6 {[%clk 0:03:00.5]} 8. Bd3 {[%clk 0:02:47.9]} 8...
Bxf5 {[%clk 0:03:00]} 9. exf5 {[%clk 0:02:49]} 9... Rc8 {[%clk 0:02:56.8]} 10.
O-O {[%clk 0:02:49]} 10... Be7 {[%clk 0:02:57.7]} 11. Bg5 {[%clk 0:02:39.7]}
11... O-O {[%clk 0:02:45.9]} 12. Ne2 {[%clk 0:02:25.6]} 12... Nd7 {[%clk
0:02:40.1]} 13. Be3 {[%clk 0:02:25.3]} 13... Nc5 {[%clk 0:02:38.2]} 14. Bxc5
{[%clk 0:02:22.1]} 14... dxc5 {[%clk 0:02:39.1]} 15. Be4 {[%clk 0:02:23.7]}
15... Nd4 {[%clk 0:02:36.5]} 16. Nc3 {[%clk 0:02:24.2]} 16... Qd6 {[%clk
0:02:20.9]} 17. Qg4 {[%clk 0:02:14]} 17... b5 {[%clk 0:02:17.7]} 18. Bd5 {[%clk
0:02:11.3]} 18... Kh8 {[%clk 0:02:13.2]} 19. Ne4 {[%clk 0:02:10.3]} 19... Qd7
{[%clk 0:02:13.9]} 20. Ng3 {[%clk 0:02:06.9]} 20... g6 {[%clk 0:02:11.2]} 21.
Qe4 {[%clk 0:02:07.4]} 21... gxf5 {[%clk 0:02:10.2]} 22. Qxe5+ {[%clk
0:02:08.4]} 22... f6 {[%clk 0:02:06.1]} 23. Qe3 {[%clk 0:02:01.9]} 23... Bd6
{[%clk 0:02:07.3]} 24. f4 {[%clk 0:02:01.5]} 24... Rce8 {[%clk 0:02:08.4]} 25.
Qd3 {[%clk 0:02:01.2]} 25... b4 {[%clk 0:02:07.7]} 26. a3 {[%clk 0:01:55.6]}
26... a5 {[%clk 0:02:08]} 27. axb4 {[%clk 0:01:56.5]} 27... axb4 {[%clk
0:02:09]} 28. Ra6 {[%clk 0:01:53.5]} 28... Re7 {[%clk 0:01:58.4]} 29. Rb6 {[%clk
0:01:30.7]} 29... Rg7 {[%clk 0:01:57.1]} 30. Rb7 {[%clk 0:01:23.8]} 30... Qc8
{[%clk 0:01:46.3]} 31. Rxg7 {[%clk 0:01:23.2]} 31... Kxg7 {[%clk 0:01:48.2]} 32.
Ra1 {[%clk 0:01:12.7]} 32... Re8 {[%clk 0:01:45.3]} 33. Ra7+ {[%clk 0:00:51.9]}
33... Re7 {[%clk 0:01:45.4]} 34. Ra8 {[%clk 0:00:53]} 34... Qd7 {[%clk
0:01:41.5]} 35. Rg8+ {[%clk 0:00:53]} 35... Kh6 {[%clk 0:01:37.1]} 36. Qd1
{[%clk 0:00:41.8]} 36... Ne2+ {[%clk 0:01:15.7]} 37. Nxe2 {[%clk 0:00:41.6]}
37... Re8 {[%clk 0:01:07.6]} 38. Rxe8 {[%clk 0:00:25.6]} 38... Qxe8 {[%clk
0:01:08.8]} 39. Kf2 {[%clk 0:00:26.8]} 39... Qh5 {[%clk 0:01:07.7]} 40. Kg1
{[%clk 0:00:22.3]} 40... Qe8 {[%clk 0:01:05.6]} 41. Qd2 {[%clk 0:00:22.2]} 41...
Qd8 {[%clk 0:01:05.1]} 42. Qe3 {[%clk 0:00:22.7]} 42... Qa5 {[%clk 0:01:04]} 43.
h3 {[%clk 0:00:17.4]} 43... Qa1+ {[%clk 0:01:04.5]} 44. Kh2 {[%clk 0:00:18.9]}
44... Qf1 {[%clk 0:01:05.1]} 45. Qf3 {[%clk 0:00:17.2]} 45... Qe1 {[%clk
0:01:01.4]} 46. Ng3 {[%clk 0:00:18.2]} 46... Bc7 {[%clk 0:00:46.7]} 47. Qh5+
{[%clk 0:00:17.9]} 47... Kg7 {[%clk 0:00:46.9]} 48. Qf7+ {[%clk 0:00:18.8]} 1-0

[Event "*** Titled Tuesday 3|2 Blitz"]
[Site "Chess.com"]
[Date "2017.05.02"]
[Round "6"]
[White "bilelou"]
[Black "Astaneh"]
[Result "1-0"]
[WhiteElo "2415"]
[BlackElo "2470"]
[TimeControl "180+2"]
[EndTime "14:18:50 PDT"]
[Termination "bilelou won by resignation"]

1. e4 {[%clk 0:03:02]} 1... e5 {[%clk 0:02:52.7]} 2. Qh5 {[%clk 0:03:01.9]} 2...
Nc6 {[%clk 0:02:45.9]} 3. Bc4 {[%clk 0:03:02.9]} 3... g6 {[%clk 0:02:46.7]} 4.
Qf3 {[%clk 0:03:04.5]} 4... Qf6 {[%clk 0:02:47.5]} 5. Qd1 {[%clk 0:03:05.5]}
5... Bg7 {[%clk 0:02:48.3]} 6. d3 {[%clk 0:03:02.8]} 6... Qd8 {[%clk 0:02:48.6]}
7. Ne2 {[%clk 0:03:02.8]} 7... Nge7 {[%clk 0:02:49.4]} 8. O-O {[%clk 0:03:03.7]}
8... d5 {[%clk 0:02:48.1]} 9. exd5 {[%clk 0:03:04.2]} 9... Nxd5 {[%clk 0:02:50]}
10. Nbc3 {[%clk 0:03:05.3]} 10... Nb6 {[%clk 0:02:49.7]} 11. Bb3 {[%clk
0:03:05.4]} 11... O-O {[%clk 0:02:51.3]} 12. a4 {[%clk 0:03:05.1]} 12... a6
{[%clk 0:02:48.2]} 13. a5 {[%clk 0:03:04.1]} 13... Nd7 {[%clk 0:02:49.3]} 14. f4
{[%clk 0:03:02.7]} 14... Nc5 {[%clk 0:02:49.6]} 15. Bc4 {[%clk 0:03:01.2]} 15...
Be6 {[%clk 0:02:42.8]} 16. Bxe6 {[%clk 0:03:01.3]} 16... Nxe6 {[%clk 0:02:36.5]}
17. f5 {[%clk 0:03:00.7]} 17... Ned4 {[%clk 0:02:37.6]} 18. Ng3 {[%clk
0:02:59.4]} 18... Nb4 {[%clk 0:02:23.6]} 19. Rf2 {[%clk 0:02:54.4]} 19... Re8
{[%clk 0:02:14.1]} 20. Nce4 {[%clk 0:02:54.3]} 20... Nd5 {[%clk 0:02:13.5]} 21.
c3 {[%clk 0:02:33.3]} 21... Nc6 {[%clk 0:02:09.7]} 22. Qf3 {[%clk 0:02:29.3]}
22... Nf4 {[%clk 0:02:09.8]} 23. Bxf4 {[%clk 0:02:18.3]} 23... exf4 {[%clk
0:02:10.5]} 24. Qxf4 {[%clk 0:02:19.9]} 24... Ne5 {[%clk 0:02:09.5]} 25. fxg6
{[%clk 0:01:56.6]} 25... fxg6 {[%clk 0:02:10.4]} 26. d4 {[%clk 0:01:33.5]} 26...
Nd3 {[%clk 0:02:07.9]} 27. Qf7+ {[%clk 0:01:33.4]} 27... Kh8 {[%clk 0:02:09.5]}
28. Rd2 {[%clk 0:01:29.1]} 28... Rf8 {[%clk 0:02:04.3]} 29. Qc4 {[%clk
0:01:27.4]} 29... Nf4 {[%clk 0:02:04.8]} 30. Rf1 {[%clk 0:01:27.4]} 30... c6
{[%clk 0:02:03.5]} 31. Nc5 {[%clk 0:01:25.9]} 31... Qe7 {[%clk 0:01:49.7]} 32.
Rdf2 {[%clk 0:01:15.2]} 32... Nd5 {[%clk 0:01:25.4]} 33. Qe2 {[%clk 0:01:12.5]}
33... Rxf2 {[%clk 0:01:19.5]} 34. Rxf2 {[%clk 0:01:12.1]} 34... Re8 {[%clk
0:00:59.3]} 35. Qxe7 {[%clk 0:01:09.6]} 35... Rxe7 {[%clk 0:01:00]} 36. Re2
{[%clk 0:01:11.2]} 36... Bf6 {[%clk 0:00:39.5]} 37. Rxe7 {[%clk 0:01:09.8]}
37... Bxe7 {[%clk 0:00:41.4]} 38. Nxb7 {[%clk 0:01:10]} 38... Ne3 {[%clk
0:00:42.9]} 39. Ne4 {[%clk 0:01:07.7]} 39... Kg7 {[%clk 0:00:42.8]} 40. Nbc5
{[%clk 0:01:05.2]} 40... Nc4 {[%clk 0:00:26.9]} 41. b4 {[%clk 0:01:04.7]} 41...
Kf7 {[%clk 0:00:19.8]} 42. Nxa6 {[%clk 0:01:05.2]} 42... Ke6 {[%clk 0:00:21.7]}
43. Nac5+ {[%clk 0:01:05.9]} 43... Kf5 {[%clk 0:00:23.3]} 44. a6 {[%clk
0:01:07.1]} 44... Nb6 {[%clk 0:00:24.9]} 45. a7 {[%clk 0:01:08.3]} 45... Na8
{[%clk 0:00:25.7]} 46. Kf2 {[%clk 0:01:01.8]} 46... Bd8 {[%clk 0:00:27.3]} 47.
Nd6+ {[%clk 0:01:02.3]} 47... Kf6 {[%clk 0:00:28.2]} 48. Nc4 {[%clk 0:01:02.2]}
48... Ke7 {[%clk 0:00:28.5]} 49. Ke3 {[%clk 0:01:02.6]} 49... Bc7 {[%clk
0:00:29.8]} 50. h3 {[%clk 0:01:02.1]} 50... Bg3 {[%clk 0:00:30.8]} 51. Ke4
{[%clk 0:01:03.3]} 51... Be1 {[%clk 0:00:32.2]} 52. Kd3 {[%clk 0:01:04.6]} 52...
Kd8 {[%clk 0:00:32.8]} 53. Ne5 {[%clk 0:01:04.6]} 53... Kc7 {[%clk 0:00:33.6]}
54. Ne6+ {[%clk 0:01:02.5]} 54... Kb6 {[%clk 0:00:34.7]} 55. Nf8 {[%clk
0:01:04.1]} 55... Kxa7 {[%clk 0:00:34.9]} 56. Nxh7 {[%clk 0:01:05.5]} 56... Kb6
{[%clk 0:00:36.2]} 57. Nxg6 {[%clk 0:01:06.7]} 57... Nc7 {[%clk 0:00:37.9]} 58.
Nf4 {[%clk 0:01:07.3]} 58... Nb5 {[%clk 0:00:38.6]} 59. Ne2 {[%clk 0:01:07.6]}
59... Kc7 {[%clk 0:00:38.9]} 60. Ng5 {[%clk 0:01:07.3]} 60... Kd7 {[%clk
0:00:40.4]} 61. Nf3 {[%clk 0:01:08.9]} 61... Bf2 {[%clk 0:00:40.7]} 62. c4
{[%clk 0:01:09.8]} 62... Nc7 {[%clk 0:00:41.6]} 63. h4 {[%clk 0:01:10.7]} 63...
Ke6 {[%clk 0:00:42.2]} 64. h5 {[%clk 0:01:12.3]} 64... Kf5 {[%clk 0:00:43.4]}
65. Ne5 {[%clk 0:01:10.4]} 65... Kg5 {[%clk 0:00:40.1]} 66. Nxc6 {[%clk
0:01:12]} 66... Kxh5 {[%clk 0:00:41.4]} 67. b5 {[%clk 0:01:13.6]} 67... Kg6
{[%clk 0:00:39.1]} 68. b6 {[%clk 0:01:14.3]} 68... Na6 {[%clk 0:00:40.6]} 69. c5
{[%clk 0:01:15.6]} 69... Kf6 {[%clk 0:00:42.1]} 70. b7 {[%clk 0:01:16.8]} 1-0

[Event "*** Titled Tuesday 3|2 Blitz"]
[Site "Chess.com"]
[Date "2017.05.02"]
[Round "6"]
[White "iturrizaga"]
[Black "MagnusCarlsen"]
[Result "0-1"]
[WhiteElo "2674"]
[BlackElo "2989"]
[TimeControl "180+2"]
[EndTime "14:19:06 PDT"]
[Termination "MagnusCarlsen won on time"]

1. Nf3 {[%clk 0:03:02]} 1... Nf6 {[%clk 0:02:58.4]} 2. c4 {[%clk 0:03:03.9]}
2... g6 {[%clk 0:02:58.9]} 3. g3 {[%clk 0:03:05.4]} 3... b6 {[%clk 0:02:57.2]}
4. Bg2 {[%clk 0:03:06.6]} 4... Bb7 {[%clk 0:02:58.6]} 5. O-O {[%clk 0:03:08.3]}
5... Bg7 {[%clk 0:02:59.8]} 6. Nc3 {[%clk 0:03:09.5]} 6... O-O {[%clk
0:03:00.6]} 7. Re1 {[%clk 0:03:06.1]} 7... c5 {[%clk 0:02:46.7]} 8. e4 {[%clk
0:03:06.6]} 8... Nc6 {[%clk 0:02:46.8]} 9. d3 {[%clk 0:03:03.5]} 9... d6 {[%clk
0:02:46.7]} 10. h3 {[%clk 0:03:03.4]} 10... Nd7 {[%clk 0:02:47.7]} 11. Be3
{[%clk 0:03:03.4]} 11... Nde5 {[%clk 0:02:03.6]} 12. Nh2 {[%clk 0:03:03.2]}
12... Nd4 {[%clk 0:02:03.7]} 13. f4 {[%clk 0:03:03.4]} 13... Nec6 {[%clk
0:02:04.9]} 14. g4 {[%clk 0:02:58.1]} 14... e6 {[%clk 0:02:05.6]} 15. Nf3 {[%clk
0:02:52.8]} 15... Qd7 {[%clk 0:01:54]} 16. Qd2 {[%clk 0:02:46.8]} 16... Nxf3+
{[%clk 0:01:53.7]} 17. Bxf3 {[%clk 0:02:47.4]} 17... Nd4 {[%clk 0:01:55.4]} 18.
Bg2 {[%clk 0:02:48.2]} 18... f5 {[%clk 0:01:56.9]} 19. Rf1 {[%clk 0:02:44.1]}
19... Rae8 {[%clk 0:01:54.3]} 20. Rae1 {[%clk 0:02:44.2]} 20... a6 {[%clk
0:01:53.5]} 21. Ne2 {[%clk 0:02:37.1]} 21... b5 {[%clk 0:01:50]} 22. Bxd4 {[%clk
0:02:25.5]} 22... cxd4 {[%clk 0:01:49.6]} 23. cxb5 {[%clk 0:02:16.5]} 23... Qxb5
{[%clk 0:01:48.7]} 24. Ng3 {[%clk 0:02:15.4]} 24... fxg4 {[%clk 0:01:33.7]} 25.
hxg4 {[%clk 0:02:15.9]} 25... a5 {[%clk 0:01:29.5]} 26. Rf2 {[%clk 0:01:55.5]}
26... Ba6 {[%clk 0:01:29.6]} 27. Rf3 {[%clk 0:01:48.8]} 27... Rc8 {[%clk
0:01:27]} 28. g5 {[%clk 0:01:47.3]} 28... Rc5 {[%clk 0:01:25.5]} 29. Bh3 {[%clk
0:01:47]} 29... Bc8 {[%clk 0:01:23]} 30. Ref1 {[%clk 0:01:43.6]} 30... Qc6
{[%clk 0:01:17.2]} 31. R3f2 {[%clk 0:01:42.5]} 31... Qc7 {[%clk 0:01:10.9]} 32.
Qe2 {[%clk 0:01:31.1]} 32... a4 {[%clk 0:01:07.2]} 33. Qd1 {[%clk 0:01:24.1]}
33... Bd7 {[%clk 0:01:05.2]} 34. Bg4 {[%clk 0:01:15.2]} 34... Qd8 {[%clk
0:00:55.3]} 35. Qd2 {[%clk 0:01:06.4]} 35... Qe7 {[%clk 0:00:46.8]} 36. Rh2
{[%clk 0:00:57.8]} 36... Rfc8 {[%clk 0:00:44.1]} 37. Bd1 {[%clk 0:00:52.9]}
37... Bb5 {[%clk 0:00:42.9]} 38. Rh1 {[%clk 0:00:42.6]} 38... Rc1 {[%clk
0:00:39.7]} 39. Qh2 {[%clk 0:00:32.5]} 39... Bh8 {[%clk 0:00:40.3]} 40. Qd2
{[%clk 0:00:19.4]} 40... Rb1 {[%clk 0:00:32.2]} 41. Kg2 {[%clk 0:00:17.4]} 41...
Rbc1 {[%clk 0:00:24.8]} 42. Rh2 {[%clk 0:00:16.6]} 42... a3 {[%clk 0:00:23.3]}
43. bxa3 {[%clk 0:00:12.9]} 43... R1c3 {[%clk 0:00:24.3]} 44. Rf3 {[%clk
0:00:11.5]} 44... Qd7 {[%clk 0:00:18.2]} 45. Bb3 {[%clk 0:00:09.8]} 45... Ba4
{[%clk 0:00:19.4]} 46. Bxa4 {[%clk 0:00:03.6]} 46... Qxa4 {[%clk 0:00:21.3]} 47.
Rf2 {[%clk 0:00:02.7]} 47... Qxa3 {[%clk 0:00:21.3]} 48. f5 {[%clk 0:00:04.2]}
48... Rxd3 {[%clk 0:00:22.5]} 49. Qf4 {[%clk 0:00:05.2]} 49... Be5 {[%clk
0:00:23.5]} 0-1

[Event "*** Titled Tuesday 3|2 Blitz"]
[Site "Chess.com"]
[Date "2017.05.02"]
[Round "6"]
[White "yurisolo"]
[Black "platy3"]
[Result "0-1"]
[WhiteElo "2521"]
[BlackElo "2646"]
[TimeControl "180+2"]
[EndTime "14:19:15 PDT"]
[Termination "platy3 won by resignation"]

1. e4 {[%clk 0:03:02]} 1... c5 {[%clk 0:02:59.5]} 2. Nf3 {[%clk 0:03:02.3]} 2...
e6 {[%clk 0:03:00.4]} 3. d4 {[%clk 0:03:03]} 3... cxd4 {[%clk 0:03:02.3]} 4.
Nxd4 {[%clk 0:03:03.8]} 4... Nc6 {[%clk 0:03:04.1]} 5. Nc3 {[%clk 0:03:04.7]}
5... Qc7 {[%clk 0:03:04.9]} 6. Be3 {[%clk 0:03:05.1]} 6... a6 {[%clk 0:03:06.1]}
7. Qd2 {[%clk 0:03:05.8]} 7... Nf6 {[%clk 0:03:05.3]} 8. O-O-O {[%clk
0:03:06.2]} 8... Be7 {[%clk 0:03:02.3]} 9. f3 {[%clk 0:03:04.8]} 9... h5 {[%clk
0:03:02.8]} 10. Qf2 {[%clk 0:02:30.3]} 10... Ne5 {[%clk 0:02:30.5]} 11. Kb1
{[%clk 0:02:24.3]} 11... b5 {[%clk 0:02:23.8]} 12. Qg3 {[%clk 0:01:49]} 12... h4
{[%clk 0:02:10.3]} 13. Qxg7 {[%clk 0:01:36.5]} 13... Ng6 {[%clk 0:01:57.9]} 14.
Bxb5 {[%clk 0:01:19.4]} 14... axb5 {[%clk 0:01:45.1]} 15. Ndxb5 {[%clk
0:01:21.3]} 15... Qb8 {[%clk 0:01:26.9]} 16. Nd6+ {[%clk 0:00:52.8]} 16... Bxd6
{[%clk 0:01:26.7]} 17. Rxd6 {[%clk 0:00:54.7]} 17... Qxd6 {[%clk 0:01:18]} 18.
Qxf6 {[%clk 0:00:56.1]} 18... Qe5 {[%clk 0:00:49.1]} 19. Qxe5 {[%clk 0:00:56.5]}
19... Nxe5 {[%clk 0:00:51]} 20. Nb5 {[%clk 0:00:57.9]} 20... Ra5 {[%clk
0:00:30.1]} 21. Nc7+ {[%clk 0:00:44.3]} 21... Ke7 {[%clk 0:00:31.4]} 22. Bb6
{[%clk 0:00:45.3]} 22... Ra6 {[%clk 0:00:29.1]} 23. Nxa6 {[%clk 0:00:40.1]}
23... Bxa6 {[%clk 0:00:31]} 24. Bd4 {[%clk 0:00:36.4]} 24... f6 {[%clk
0:00:32.2]} 25. h3 {[%clk 0:00:26.2]} 25... Rg8 {[%clk 0:00:32.2]} 26. Rg1
{[%clk 0:00:26.3]} 26... Bb7 {[%clk 0:00:13.4]} 27. a4 {[%clk 0:00:19.9]} 27...
d5 {[%clk 0:00:14.5]} 28. exd5 {[%clk 0:00:18.3]} 28... Bxd5 {[%clk 0:00:16.4]}
29. b3 {[%clk 0:00:19]} 29... Nf7 {[%clk 0:00:14]} 30. a5 {[%clk 0:00:14.3]}
30... e5 {[%clk 0:00:14.8]} 31. Bc5+ {[%clk 0:00:14.5]} 31... Ke6 {[%clk
0:00:15.6]} 32. a6 {[%clk 0:00:14.6]} 32... Nd6 {[%clk 0:00:06.8]} 33. c4 {[%clk
0:00:10.5]} 33... Bc6 {[%clk 0:00:07.5]} 34. a7 {[%clk 0:00:10.7]} 34... Ra8
{[%clk 0:00:05.6]} 35. Bf2 {[%clk 0:00:07]} 35... Nc8 {[%clk 0:00:06.2]} 36. Kb2
{[%clk 0:00:08.1]} 36... Nxa7 {[%clk 0:00:05.4]} 37. Ra1 {[%clk 0:00:09]} 37...
Rg8 {[%clk 0:00:06.9]} 38. Bxa7 {[%clk 0:00:07.4]} 38... Rxg2+ {[%clk
0:00:08.4]} 39. Kc3 {[%clk 0:00:08.4]} 39... Bxf3 {[%clk 0:00:10]} 40. Rg1
{[%clk 0:00:06.8]} 40... Rg3 {[%clk 0:00:06.5]} 41. b4 {[%clk 0:00:05.3]} 41...
Rxh3 {[%clk 0:00:06.6]} 42. b5 {[%clk 0:00:06.1]} 42... Rg3 {[%clk 0:00:05.1]}
43. Kb4 {[%clk 0:00:04.6]} 43... Rxg1 {[%clk 0:00:03.2]} 44. Bxg1 {[%clk
0:00:04.9]} 44... Kd7 {[%clk 0:00:04.9]} 45. c5 {[%clk 0:00:05.9]} 45... f5
{[%clk 0:00:06.2]} 46. Kc4 {[%clk 0:00:06.7]} 46... f4 {[%clk 0:00:05.8]} 47.
Bh2 {[%clk 0:00:06.8]} 47... Bh1 {[%clk 0:00:04.5]} 48. Kb4 {[%clk 0:00:06.7]}
48... Ke6 {[%clk 0:00:05.6]} 49. c6 {[%clk 0:00:06.5]} 49... f3 {[%clk
0:00:06.3]} 50. Bg1 {[%clk 0:00:04.2]} 50... h3 {[%clk 0:00:07.5]} 51. b6 {[%clk
0:00:03.2]} 51... h2 {[%clk 0:00:08.9]} 52. Bxh2 {[%clk 0:00:03.9]} 52... f2
{[%clk 0:00:10.1]} 53. b7 {[%clk 0:00:05.2]} 53... f1=Q {[%clk 0:00:11.4]} 54.
c7 {[%clk 0:00:05.8]} 54... Bxb7 {[%clk 0:00:09.8]} 0-1

[Event "*** Titled Tuesday 3|2 Blitz"]
[Site "Chess.com"]
[Date "2017.05.02"]
[Round "6"]
[White "Blitzstream"]
[Black "severomorskij"]
[Result "1/2-1/2"]
[WhiteElo "2469"]
[BlackElo "2671"]
[TimeControl "180+2"]
[EndTime "14:19:23 PDT"]
[Termination "Game drawn by stalemate"]

1. g3 {[%clk 0:03:02]} 1... e5 {[%clk 0:02:59.6]} 2. Bg2 {[%clk 0:03:03.2]} 2...
d5 {[%clk 0:03:00.8]} 3. b3 {[%clk 0:03:04.7]} 3... Nc6 {[%clk 0:03:00.9]} 4.
Bb2 {[%clk 0:03:06.3]} 4... Be6 {[%clk 0:03:02.2]} 5. d3 {[%clk 0:03:07.4]} 5...
Qd7 {[%clk 0:03:03.4]} 6. Nd2 {[%clk 0:03:08.5]} 6... f6 {[%clk 0:03:00.4]} 7.
e3 {[%clk 0:03:08.6]} 7... O-O-O {[%clk 0:02:57.9]} 8. a3 {[%clk 0:03:09.8]}
8... h5 {[%clk 0:02:56.7]} 9. h3 {[%clk 0:03:11]} 9... Nh6 {[%clk 0:02:50.6]}
10. Ne2 {[%clk 0:03:12]} 10... Kb8 {[%clk 0:02:41.2]} 11. c4 {[%clk 0:03:09]}
11... dxc4 {[%clk 0:02:14.7]} 12. dxc4 {[%clk 0:03:09.3]} 12... a5 {[%clk
0:02:04.8]} 13. Qc2 {[%clk 0:02:03.1]} 13... Bf5 {[%clk 0:01:44.7]} 14. Ne4
{[%clk 0:01:52.2]} 14... Be7 {[%clk 0:01:31.1]} 15. N2c3 {[%clk 0:01:50.6]}
15... h4 {[%clk 0:01:17]} 16. g4 {[%clk 0:01:51.1]} 16... Bg6 {[%clk 0:01:18.2]}
17. Rd1 {[%clk 0:01:45.8]} 17... Qe6 {[%clk 0:01:17.5]} 18. Nd5 {[%clk
0:01:21.3]} 18... f5 {[%clk 0:01:17]} 19. gxf5 {[%clk 0:01:21.7]} 19... Nxf5
{[%clk 0:01:17.5]} 20. Qe2 {[%clk 0:01:20.2]} 20... Bh5 {[%clk 0:01:14.1]} 21.
Bf3 {[%clk 0:01:17.5]} 21... Bxf3 {[%clk 0:01:14.8]} 22. Qxf3 {[%clk 0:01:19.4]}
22... Rhf8 {[%clk 0:01:15.8]} 23. Qg4 {[%clk 0:01:13.8]} 23... Qf7 {[%clk
0:01:15.6]} 24. O-O {[%clk 0:00:55.4]} 24... Nd6 {[%clk 0:01:11.8]} 25. Kh2
{[%clk 0:00:34.7]} 25... Nxe4 {[%clk 0:01:10.7]} 26. Qxe4 {[%clk 0:00:35.9]}
26... Bd6 {[%clk 0:01:09.4]} 27. b4 {[%clk 0:00:21.8]} 27... axb4 {[%clk
0:01:09.4]} 28. axb4 {[%clk 0:00:23]} 28... Nxb4 {[%clk 0:01:10.6]} 29. Nxb4
{[%clk 0:00:21.4]} 29... Bxb4 {[%clk 0:01:11.2]} 30. Rxd8+ {[%clk 0:00:21.9]}
30... Rxd8 {[%clk 0:01:11.5]} 31. Bxe5 {[%clk 0:00:23.5]} 31... g5 {[%clk
0:00:57.9]} 32. Kh1 {[%clk 0:00:18.7]} 32... Rd2 {[%clk 0:00:47.2]} 33. f4
{[%clk 0:00:12.7]} 33... gxf4 {[%clk 0:00:34.1]} 34. Bxf4 {[%clk 0:00:13.4]}
34... Qd7 {[%clk 0:00:34.5]} 35. Qf3 {[%clk 0:00:08]} 35... Bd6 {[%clk
0:00:19.8]} 36. Rb1 {[%clk 0:00:08.6]} 36... c6 {[%clk 0:00:18.3]} 37. Rd1
{[%clk 0:00:07.5]} 37... Rxd1+ {[%clk 0:00:12.5]} 38. Qxd1 {[%clk 0:00:08.1]}
38... Kc7 {[%clk 0:00:14]} 39. Bxd6+ {[%clk 0:00:07.3]} 39... Qxd6 {[%clk
0:00:15.9]} 40. Qg4 {[%clk 0:00:06.7]} 40... Qf6 {[%clk 0:00:12.6]} 41. Kg2
{[%clk 0:00:08]} 41... b5 {[%clk 0:00:12.9]} 42. cxb5 {[%clk 0:00:09.9]} 42...
cxb5 {[%clk 0:00:14.4]} 43. e4 {[%clk 0:00:11.1]} 43... Kd6 {[%clk 0:00:12.5]}
44. Qe2 {[%clk 0:00:10.8]} 44... Qg5+ {[%clk 0:00:12]} 45. Kf1 {[%clk
0:00:10.2]} 45... Qf4+ {[%clk 0:00:10.6]} 46. Ke1 {[%clk 0:00:09.2]} 46... Qg3+
{[%clk 0:00:08.3]} 47. Kd2 {[%clk 0:00:10.5]} 47... Qe5 {[%clk 0:00:09.3]} 48.
Qd3+ {[%clk 0:00:09.6]} 48... Kc5 {[%clk 0:00:09.9]} 49. Qa3+ {[%clk 0:00:09.1]}
49... Kb6 {[%clk 0:00:09.1]} 50. Qe3+ {[%clk 0:00:09.3]} 50... Qc5 {[%clk
0:00:10]} 51. Qxc5+ {[%clk 0:00:06.4]} 51... Kxc5 {[%clk 0:00:10.8]} 52. Kc3
{[%clk 0:00:08.3]} 52... Kd6 {[%clk 0:00:07.2]} 53. Kb4 {[%clk 0:00:09.5]} 53...
Ke5 {[%clk 0:00:08.8]} 54. Kxb5 {[%clk 0:00:10.8]} 54... Kxe4 {[%clk 0:00:10.4]}
55. Kc4 {[%clk 0:00:12.5]} 55... Kf3 {[%clk 0:00:12]} 56. Kd3 {[%clk 0:00:14.1]}
56... Kg3 {[%clk 0:00:13.3]} 57. Ke3 {[%clk 0:00:15.8]} 57... Kxh3 {[%clk
0:00:14.6]} 58. Kf3 {[%clk 0:00:17.5]} 58... Kh2 {[%clk 0:00:16.1]} 59. Kf2
{[%clk 0:00:18.9]} 59... h3 {[%clk 0:00:17.8]} 60. Kf1 {[%clk 0:00:20.3]} 60...
Kh1 {[%clk 0:00:19.4]} 61. Kf2 {[%clk 0:00:21.5]} 61... h2 {[%clk 0:00:21]} 62.
Kf1 {[%clk 0:00:22.9]} 1/2-1/2